fUST/lending_fUST_20250605
["ID","MTS","AMOUNT","RATE_DAILY","PERIOD"]
[364514687,1749124242746,-1125.64,0.0002,2]
[364514689,1749124242755,-613.8,0.0002,2]
[364514691,1749124242764,-1210.1101469,0.00020072,2]
[364514693,1749124242774,-191.10992408,0.00020114,2]
[364514695,1749124242783,-254.788844,0.00020187,2]
[364514697,1749124242793,-440.0,0.00020273,2]
[364514699,1749124242802,-1025.84,0.00020273,2]
[364514701,1749124242811,-440.0,0.00020273,2]
[364514703,1749124242820,-440.0,0.00020273,2]
[364514705,1749124242830,-1162.85,0.00020273,2]
[364514707,1749124242840,-440.0,0.00020273,2]
[364514709,1749124242849,-440.0,0.00020273,2]
[364514711,1749124242858,-440.0,0.00020273,2]
[364514713,1749124242868,-475.61,0.00020273,2]
[364514715,1749124242878,-440.0,0.00020273,2]
[364514717,1749124242888,-939.53,0.00020273,2]
[364514719,1749124242897,-440.0,0.00020273,2]
[364514721,1749124242907,-740.25,0.00020273,2]
[364514723,1749124242916,-924.16,0.00020273,2]
[364514725,1749124242925,-440.0,0.00020273,2]
[364514727,1749124242935,-494.25,0.00020273,2]
[364514729,1749124242945,-440.0,0.00020273,2]
[364514731,1749124242954,-440.0,0.00020273,2]
[364514733,1749124242964,-440.0,0.00020273,2]
[364514736,1749124242974,-1051.33,0.00020273,2]
[364514739,1749124242983,-898.8,0.00020273,2]
[364514741,1749124242993,-1128.69,0.00020273,2]
[364514743,1749124243003,-1125.64,0.00020273,2]
[364514745,1749124243012,-613.8,0.00020273,2]
[364514759,1749124243021,-1210.1101469,0.00020314,3]
[364514761,1749124243144,-4315.6,0.0002034,2]
[364514763,1749124243154,-12938.67874137,0.000204,2]
[364514765,1749124243164,-500.0,0.00020547,2]
[364514767,1749124243174,-440.0,0.00020547,2]
[364514769,1749124243184,-1025.84,0.00020547,2]
[364514771,1749124243195,-440.0,0.00020547,2]
[364514773,1749124243205,-400.0,0.00020547,2]
[364514775,1749124243215,-400.0,0.00020547,2]
[364514777,1749124243225,-311.23862199,0.00020547,2]
[364514779,1749124243235,-440.0,0.00020547,2]
[364514781,1749124243244,-1162.85,0.00020547,2]
[364514783,1749124243255,-440.0,0.00020547,2]
[364514785,1749124243264,-440.0,0.00020547,2]
[364514787,1749124243275,-440.0,0.00020547,2]
[364514789,1749124243284,-475.61,0.00020547,2]
[364514791,1749124243295,-440.0,0.00020547,2]
[364514793,1749124243304,-939.53,0.00020547,2]
[364514795,1749124243314,-440.0,0.00020547,2]
[364514797,1749124243323,-740.25,0.00020547,2]
[364514799,1749124243333,-924.16,0.00020547,2]
[364514801,1749124243342,-440.0,0.00020547,2]
[364514803,1749124243352,-494.25,0.00020547,2]
[364514805,1749124243361,-379.56,0.00020547,2]
[364514807,1749124243370,-440.0,0.00020547,2]
[364514809,1749124243379,-440.0,0.00020547,2]
[364514811,1749124243389,-1051.33,0.00020547,2]
[364514813,1749124243399,-898.8,0.00020547,2]
[364514815,1749124243408,-1128.69,0.00020547,2]
[364514817,1749124243417,-1125.64,0.00020547,2]
[364514819,1749124243427,-613.8,0.00020547,2]
[364514821,1749124243437,-1210.1101469,0.00020555,3]
[364514823,1749124243448,-2741.73,0.000206,2]
[364514825,1749124243457,-4090.31,0.000206,2]
[364514827,1749124243466,-46970.89778022,0.00020721,2]
[364514829,1749124243475,-1210.1101469,0.00020797,4]
[364514831,1749124243485,-251.72380422,0.00020821,2]
[364514833,1749124243494,-1025.84,0.00020821,2]
[364514835,1749124243504,-440.0,0.00020821,2]
[364514837,1749124243513,-440.0,0.00020821,2]
[364514839,1749124243523,-1162.85,0.00020821,2]
[364514841,1749124243532,-440.0,0.00020821,2]
[364514843,1749124243541,-440.0,0.00020821,2]
[364514845,1749124243551,-440.0,0.00020821,2]
[364514847,1749124243563,-475.61,0.00020821,2]
[364514849,1749124243573,-519.8,0.00020821,2]
[364514851,1749124243582,-939.53,0.00020821,2]
[364514853,1749124243591,-440.0,0.00020821,2]
[364514855,1749124243601,-740.25,0.00020821,2]
[364514857,1749124243612,-924.16,0.00020821,2]
[364514859,1749124243621,-388.2300002,0.00020821,2]
[364514861,1749124243631,-494.25,0.00020821,2]
[364514863,1749124243641,-440.0,0.00020821,2]
[364514865,1749124243651,-440.0,0.00020821,2]
[364514867,1749124243660,-1051.33,0.00020821,2]
[364514869,1749124243671,-898.8,0.00020821,2]
[364514871,1749124243681,-1128.69,0.00020821,2]
[364514873,1749124243690,-1125.64,0.00020821,2]
[364514875,1749124243700,-613.8,0.00020821,2]
[364514877,1749124243709,-215.0738,0.00020883,2]
[364514879,1749124243718,-151.0,0.000209,4]
[364514881,1749124243727,-1210.1101469,0.00021038,4]
[364514883,1749124243736,-269.83,0.00021095,3]
[364514885,1749124243745,-1025.84,0.00021095,2]
[364514887,1749124243755,-440.0,0.00021095,2]
[364514889,1749124243764,-440.0,0.00021095,2]
[364514891,1749124243774,-1162.85,0.00021095,2]
[364514893,1749124243783,-440.0,0.00021095,2]
[364514895,1749124243792,-440.0,0.00021095,2]
[364514897,1749124243801,-440.0,0.00021095,2]
[364514899,1749124243811,-475.61,0.00021095,2]
[364514901,1749124243820,-939.53,0.00021095,2]
[364514903,1749124243829,-440.0,0.00021095,2]
[364514905,1749124243838,-740.25,0.00021095,2]
[364514908,1749124243852,-924.16,0.00021095,2]
[364514910,1749124243862,-494.25,0.00021095,2]
[364514912,1749124243872,-505.6,0.00021095,2]
[364514914,1749124243881,-440.0,0.00021095,2]
[364514916,1749124243891,-1051.33,0.00021095,2]
[364514918,1749124243900,-898.8,0.00021095,2]
[364514920,1749124243910,-1128.69,0.00021095,2]
[364514922,1749124243920,-1125.64,0.00021095,2]
[364514924,1749124243930,-613.8,0.00021095,2]
[364514926,1749124243939,-191.10992408,0.00021124,2]
[364514928,1749124243948,-800.0,0.00021164,2]
[364514930,1749124243957,-151.0,0.000212,3]
[364514932,1749124243967,-1210.1101469,0.00021279,5]
[364514934,1749124243976,-1025.84,0.00021369,2]
[364514936,1749124243986,-440.0,0.00021369,2]
[364514938,1749124243995,-440.0,0.00021369,2]
[364514940,1749124244005,-1162.85,0.00021369,2]
[364514942,1749124244014,-440.0,0.00021369,2]
[364514944,1749124244024,-440.0,0.00021369,2]
[364514946,1749124244033,-440.0,0.00021369,2]
[364514948,1749124244043,-475.61,0.00021369,2]
[364514950,1749124244052,-939.53,0.00021369,2]
[364514952,1749124244061,-440.0,0.00021369,2]
[364514954,1749124244071,-740.25,0.00021369,2]
[364514956,1749124244080,-924.16,0.00021369,2]
[364514958,1749124244089,-494.25,0.00021369,2]
[364514960,1749124244100,-440.0,0.00021369,2]
[364514962,1749124244109,-1051.33,0.00021369,2]
[364514964,1749124244119,-898.8,0.00021369,2]
[364514966,1749124244128,-1128.69,0.00021369,2]
[364514968,1749124244138,-1125.64,0.00021369,2]
[364514970,1749124244148,-613.8,0.00021369,2]
[364514972,1749124244157,-160.0,0.0002139,3]
[364514974,1749124244167,-213.99632772,0.00021499,2]
[364514976,1749124244176,-151.0,0.000215,3]
[364514978,1749124244185,-893.39,0.00021511,2]
[364514980,1749124244194,-1210.1101469,0.00021521,5]
[364514982,1749124244203,-893.39,0.00021611,2]
[364514984,1749124244213,-268805.996,0.00021642,2]
[364514986,1749124244222,-1025.84,0.00021643,2]
[364514988,1749124244232,-440.0,0.00021643,2]
[364514991,1749124244242,-440.0,0.00021643,2]
[364514993,1749124244253,-1162.85,0.00021643,2]
[364514995,1749124244262,-440.0,0.00021643,2]
[364514997,1749124244272,-543.22,0.00021643,2]
[364514999,1749124244281,-440.0,0.00021643,2]
[364515001,1749124244290,-475.61,0.00021643,2]
[364515003,1749124244300,-939.53,0.00021643,2]
[364515005,1749124244309,-440.0,0.00021643,2]
[364515007,1749124244318,-740.25,0.00021643,2]
[364515009,1749124244328,-924.16,0.00021643,2]
[364515011,1749124244337,-494.25,0.00021643,2]
[364515013,1749124244347,-312.9160477,0.00021643,2]
[364515015,1749124244356,-1051.33,0.00021643,2]
[364515017,1749124244365,-898.8,0.00021643,2]
[364515019,1749124244375,-1128.69,0.00021643,2]
[364515021,1749124244384,-1125.64,0.00021643,2]
[364515023,1749124244393,-613.8,0.00021643,2]
[364515025,1749124244403,-2741.73,0.000217,2]
[364515027,1749124244413,-893.39,0.00021711,2]
[364515029,1749124244423,-1210.1101469,0.00021762,5]
[364515031,1749124244432,-4090.31,0.000218,2]
[364515032,1749124244441,-500.0,0.0002181,2]
[364515035,1749124244451,-500.0,0.0002181,2]
[364515037,1749124244461,-500.0,0.0002181,2]
[364515039,1749124244470,-500.0,0.0002181,2]
[364515041,1749124244479,-500.0,0.0002181,2]
[364515042,1749124244489,-415.56819888,0.0002181,2]
[364515044,1749124244498,-500.0,0.0002181,2]
[364515047,1749124244507,-500.0,0.0002181,2]
[364515048,1749124244516,-500.0,0.0002181,2]
[364515050,1749124244526,-500.0,0.0002181,2]
[364515052,1749124244534,-500.0,0.0002181,2]
[364515054,1749124244544,-500.0,0.0002181,2]
[364515056,1749124244554,-500.0,0.0002181,2]
[364515058,1749124244567,-500.0,0.0002181,2]
[364515060,1749124244576,-249.2685712,0.0002181,2]
[364515062,1749124244586,-500.0,0.0002181,2]
[364515064,1749124244595,-500.0,0.0002181,2]
[364515066,1749124244605,-500.0,0.0002181,2]
[364515068,1749124244616,-500.0,0.0002181,2]
[364515070,1749124244625,-500.0,0.0002181,2]
[364515072,1749124244635,-500.0,0.0002181,2]
[364515074,1749124244646,-500.0,0.0002181,2]
[364515076,1749124244655,-893.39,0.00021811,2]
[364515078,1749124244664,-151.0,0.000219,4]
[364515080,1749124244674,-5754.14,0.00021904,2]
[364515082,1749124244683,-893.39,0.00021911,2]
[364515084,1749124244692,-1025.84,0.00021917,2]
[364515086,1749124244701,-440.0,0.00021917,2]
[364515088,1749124244711,-440.0,0.00021917,2]
[364515090,1749124244721,-1162.85,0.00021917,2]
[364515092,1749124244731,-440.0,0.00021917,2]
[364515094,1749124244740,-434.34205019,0.00021917,2]
[364515096,1749124244749,-475.61,0.00021917,2]
[364515098,1749124244759,-939.53,0.00021917,2]
[364515100,1749124244770,-440.0,0.00021917,2]
[364515102,1749124244780,-500.0,0.00021917,2]
[364515104,1749124244789,-740.25,0.00021917,2]
[364515106,1749124244798,-924.16,0.00021917,2]
[364515108,1749124244808,-494.25,0.00021917,2]
[364515110,1749124244819,-1051.33,0.00021917,2]
[364515112,1749124244828,-898.8,0.00021917,2]
[364515114,1749124244838,-1128.69,0.00021917,2]
[364515116,1749124244847,-1125.64,0.00021917,2]
[364515118,1749124244857,-613.8,0.00021917,2]
[364515120,1749124244866,-256.0,0.00022,2]
[364515122,1749124244876,-1210.1101469,0.00022003,6]
[364515123,1749124244885,-893.39,0.00022011,7]
[364515124,1749124244895,-962.0,0.00022043,2]
[364515125,1749124244903,-709.0,0.00022043,2]
[364515126,1749124244912,-2225.0,0.00022043,2]
[364515127,1749124244921,-406.0,0.00022043,2]
[364515128,1749124244930,-893.39,0.00022111,3]
[364515129,1749124244939,-191.10992408,0.00022134,2]
[364515130,1749124244949,-159.89887137,0.00022137,2]
[364515131,1749124244957,-500.0,0.00022162,2]
[364515132,1749124244967,-500.0,0.00022173,2]
[364515133,1749124244976,-500.0,0.00022173,2]
[364515134,1749124244985,-500.0,0.00022173,2]
[364515135,1749124244994,-503.13665459,0.00022173,2]
[364515136,1749124245003,-163.5396541,0.00022173,2]
[364515137,1749124245012,-500.0,0.00022173,2]
[364515138,1749124245021,-152.590274,0.00022173,2]
[364515139,1749124245030,-500.27058007,0.00022173,2]
[364515140,1749124245040,-500.0,0.00022173,2]
[364515141,1749124245049,-503.80741175,0.00022173,2]
[364515142,1749124245058,-502.7778796,0.00022173,2]
[364515143,1749124245066,-500.92514887,0.00022173,2]
[364515144,1749124245075,-505.73318035,0.00022173,2]
[364515145,1749124245084,-500.0,0.00022173,2]
[364515146,1749124245094,-500.0,0.00022173,2]
[364515148,1749124245104,-328.55184798,0.00022173,2]
[364515150,1749124245114,-500.0,0.00022173,2]
[364515152,1749124245125,-500.0,0.00022173,2]
[364515154,1749124245135,-1025.84,0.00022191,2]
[364515156,1749124245145,-440.0,0.00022191,2]
[364515158,1749124245154,-440.0,0.00022191,2]
[364515160,1749124245163,-1162.85,0.00022191,2]
[364515162,1749124245173,-440.0,0.00022191,2]
[364515164,1749124245183,-475.61,0.00022191,2]
[364515166,1749124245192,-939.53,0.00022191,2]
[364515168,1749124245202,-440.0,0.00022191,2]
[364515170,1749124245211,-740.25,0.00022191,2]
[364515172,1749124245220,-924.16,0.00022191,2]
[364515174,1749124245230,-494.25,0.00022191,2]
[364515176,1749124245242,-1051.33,0.00022191,2]
[364515178,1749124245251,-898.8,0.00022191,2]
[364515180,1749124245261,-1128.69,0.00022191,2]
[364515182,1749124245271,-1125.64,0.00022191,2]
[364515184,1749124245281,-613.8,0.00022191,2]
[364515186,1749124245291,-256.0,0.00022192,7]
[364515188,1749124245302,-95543.32527646,0.000222,7]
[364515192,1749124245323,-709.0,0.000222,7]
[364515210,1749124245498,-440.0,0.00018356,2]
[364515212,1749124245507,-440.0,0.00018356,2]
[364515214,1749124245517,-440.0,0.00018356,2]
[364515216,1749124245527,-440.0,0.0001863,2]
[364515218,1749124245536,-440.0,0.0001863,2]
[364515220,1749124245545,-440.0,0.00018904,2]
[364515222,1749124245555,-440.0,0.00018904,2]
[364515224,1749124245569,-440.0,0.00019178,2]
[364515226,1749124245579,-440.0,0.00019178,2]
[364515229,1749124245589,-440.0,0.00019178,2]
[364515231,1749124245599,-440.0,0.00019452,2]
[364515233,1749124245610,-440.0,0.00019452,2]
[364515234,1749124245619,-440.0,0.00019452,2]
[364515236,1749124245628,-379.52,0.00019726,2]
[364515238,1749124245638,-440.0,0.00019726,2]
[364515252,1749124245749,-440.0,0.00019726,2]
[364515254,1749124245759,-440.0,0.0002,2]
[364515256,1749124245769,-440.0,0.0002,2]
[364515258,1749124245779,-440.0,0.00020273,2]
[364515260,1749124245788,-25.57307335,0.00020273,2]
[364515262,1749124245800,-165.64605598,0.00020273,2]
[364515264,1749124245810,-440.0,0.00020547,2]
[364515266,1749124245819,-440.0,0.00020821,2]
[364515268,1749124245828,-231.42,0.00021095,2]
[364515270,1749124245838,-153.73394406,0.000222,7]
[364515337,1749124246467,-440.0,0.00018356,2]
[364515339,1749124246476,-440.0,0.00018356,2]
[364515341,1749124246486,-440.0,0.00018356,2]
[364515344,1749124246496,-440.0,0.0001863,2]
[364515345,1749124246506,-440.0,0.0001863,2]
[364515348,1749124246515,-182.02114365,0.0001863,2]
[364519430,1749124420912,242.272032,0.00013699,2]
[364519437,1749125205042,2118.87330089,0.00025,120]
[364519478,1749125432612,-1360.07,0.00016623,2]
[364519479,1749125432622,-250.0,0.00017027,2]
[364519480,1749125432632,-227.9472007,0.00017528,2]
[364519481,1749125432641,-685.8575701,0.00017767,2]
[364519482,1749125432651,-2927.56300179,0.0001803,2]
[364519483,1749125432716,-4068.45048824,0.0001803,2]
[364519484,1749125432726,-2720.14,0.00018134,2]
[364519485,1749125432735,-159.2582701,0.00018256,2]
[364519486,1749125432745,-296.413,0.00018345,2]
[364519487,1749125432754,-500.0,0.00018356,2]
[364519488,1749125432764,-440.0,0.00018356,2]
[364519489,1749125432776,-260.0,0.00018356,2]
[364519490,1749125432785,-157.24965494,0.00018356,2]
[364519491,1749125432795,-440.0,0.00018356,2]
[364519492,1749125432804,-224.20281402,0.00018356,2]
[364519493,1749125432813,-440.0,0.00018356,2]
[364519494,1749125432823,-440.0,0.00018356,2]
[364519495,1749125432832,-440.0,0.00018356,2]
[364519496,1749125432842,-440.0,0.00018356,2]
[364519497,1749125432851,-516.67304661,0.00018356,2]
[364519498,1749125432861,-440.0,0.00018356,2]
[364519499,1749125432869,-440.0,0.00018356,2]
[364519500,1749125432880,-440.0,0.00018356,2]
[364519501,1749125432889,-440.0,0.00018356,2]
[364519502,1749125432899,-543.86578855,0.00018356,2]
[364519503,1749125432908,-430.00129583,0.00018356,2]
[364519504,1749125432918,-440.0,0.00018356,2]
[364519505,1749125432928,-440.0,0.00018356,2]
[364519506,1749125432938,-440.0,0.00018356,2]
[364519507,1749125432951,-440.0,0.00018356,2]
[364519508,1749125432962,-440.0,0.00018356,2]
[364519509,1749125432971,-371.07216283,0.00018356,2]
[364519510,1749125432980,-440.0,0.00018356,2]
[364519511,1749125432991,-440.0,0.00018356,2]
[364519512,1749125433000,-440.0,0.00018356,2]
[364519513,1749125433010,-440.0,0.00018356,2]
[364519514,1749125433020,-440.0,0.00018356,2]
[364519515,1749125433029,-470.0,0.00018356,2]
[364519516,1749125433040,-440.0,0.00018356,2]
[364519517,1749125433049,-440.0,0.00018356,2]
[364519518,1749125433059,-440.0,0.00018356,2]
[364519519,1749125433068,-440.0,0.00018356,2]
[364519520,1749125433078,-440.0,0.00018356,2]
[364519521,1749125433087,-433.78185387,0.00018356,2]
[364519522,1749125433099,-440.0,0.00018356,2]
[364519523,1749125433109,-440.0,0.00018356,2]
[364519524,1749125433125,-440.0,0.00018356,2]
[364519525,1749125433140,-400.0,0.00018356,2]
[364519526,1749125433150,-440.0,0.00018356,2]
[364519527,1749125433160,-440.0,0.00018356,2]
[364519528,1749125433170,-440.0,0.00018356,2]
[364519529,1749125433180,-440.0,0.00018356,2]
[364519530,1749125433190,-440.0,0.00018356,2]
[364519531,1749125433200,-440.0,0.00018356,2]
[364519532,1749125433210,-262.33555041,0.00018356,2]
[364519533,1749125433220,-440.0,0.00018356,2]
[364519534,1749125433230,-440.0,0.00018356,2]
[364519535,1749125433241,-440.0,0.00018356,2]
[364519536,1749125433251,-440.0,0.00018356,2]
[364519537,1749125433262,-430.0,0.00018356,2]
[364519538,1749125433273,-503.38458235,0.00018356,2]
[364519539,1749125433283,-440.0,0.00018356,2]
[364519540,1749125433293,-440.0,0.00018356,2]
[364519541,1749125433304,-561.15723344,0.00018356,2]
[364519542,1749125433314,-440.0,0.00018356,2]
[364519543,1749125433324,-440.0,0.00018356,2]
[364519544,1749125433335,-470.0,0.00018356,2]
[364519545,1749125433346,-152.41326379,0.00018356,2]
[364519546,1749125433356,-430.0,0.00018356,2]
[364519547,1749125433367,-440.0,0.00018356,2]
[364519548,1749125433377,-152.25695452,0.00018356,2]
[364519549,1749125433388,-430.0,0.00018356,2]
[364519550,1749125433398,-440.0,0.00018356,2]
[364519551,1749125433409,-151.08189378,0.00018356,2]
[364519552,1749125433419,-440.0,0.00018356,2]
[364519553,1749125433430,-151.86791745,0.00018356,2]
[364519554,1749125433442,-151.41795838,0.00018356,2]
[364519555,1749125433452,-440.0,0.00018356,2]
[364519556,1749125433462,-151.11513631,0.00018356,2]
[364519557,1749125433474,-440.0,0.00018356,2]
[364519558,1749125433485,-440.0,0.00018356,2]
[364519559,1749125433495,-440.0,0.00018356,2]
[364519560,1749125433506,-424.84787253,0.00018356,2]
[364519561,1749125433516,-430.0,0.00018356,2]
[364519562,1749125433527,-440.0,0.00018356,2]
[364519563,1749125433536,-440.0,0.00018356,2]
[364519564,1749125433546,-440.0,0.00018356,2]
[364519565,1749125433556,-440.0,0.00018356,2]
[364519566,1749125433566,-301.32491024,0.00018356,2]
[364519567,1749125433576,-440.0,0.00018356,2]
[364519568,1749125433586,-440.0,0.00018356,2]
[364519569,1749125433596,-570.0,0.00018356,2]
[364519570,1749125433606,-440.0,0.00018356,2]
[364519571,1749125433616,-440.0,0.00018356,2]
[364519572,1749125433626,-440.0,0.00018356,2]
[364519573,1749125433636,-430.0,0.00018356,2]
[364519574,1749125433645,-252.08239734,0.00018356,2]
[364519575,1749125433655,-361.23847083,0.00018356,2]
[364519576,1749125433665,-314.9831426,0.00018356,2]
[364519577,1749125433675,-440.0,0.00018356,2]
[364519578,1749125433685,-440.0,0.00018356,2]
[364519579,1749125433695,-402.55146921,0.00018356,2]
[364519580,1749125433705,-440.0,0.00018356,2]
[364519581,1749125433715,-440.0,0.00018356,2]
[364519582,1749125433724,-440.0,0.00018356,2]
[364519583,1749125433735,-430.0,0.00018356,2]
[364519584,1749125433745,-440.0,0.00018356,2]
[364519585,1749125433756,-440.0,0.00018356,2]
[364519586,1749125433766,-440.0,0.00018356,2]
[364519587,1749125433776,-353.95301629,0.00018356,2]
[364519588,1749125433786,-440.0,0.00018356,2]
[364519589,1749125433796,-540.24734751,0.00018356,2]
[364519590,1749125433806,-430.0,0.00018356,2]
[364519591,1749125433816,-440.0,0.00018356,2]
[364519592,1749125433825,-440.0,0.00018356,2]
[364519593,1749125433835,-440.0,0.00018356,2]
[364519594,1749125433845,-220.0,0.00018356,2]
[364519595,1749125433855,-440.0,0.00018356,2]
[364519596,1749125433865,-440.0,0.00018356,2]
[364519597,1749125433874,-430.0,0.00018356,2]
[364519598,1749125433884,-440.0,0.00018356,2]
[364519599,1749125433894,-440.0,0.00018356,2]
[364519600,1749125433903,-196.29704414,0.00018356,2]
[364519601,1749125433913,-440.0,0.00018356,2]
[364519602,1749125433923,-440.0,0.00018356,2]
[364519603,1749125433933,-440.0,0.00018356,2]
[364519604,1749125433943,-440.0,0.00018356,2]
[364519605,1749125433956,-440.0,0.00018356,2]
[364519606,1749125433965,-430.0,0.00018356,2]
[364519607,1749125433975,-440.0,0.00018356,2]
[364519608,1749125433985,-440.0,0.00018356,2]
[364519609,1749125433995,-430.0,0.00018356,2]
[364519610,1749125434004,-440.0,0.00018356,2]
[364519611,1749125434014,-440.0,0.00018356,2]
[364519612,1749125434024,-440.0,0.00018356,2]
[364519613,1749125434034,-440.0,0.00018356,2]
[364519614,1749125434044,-472.11304336,0.00018356,2]
[364519615,1749125434054,-440.0,0.00018356,2]
[364519616,1749125434064,-440.0,0.00018356,2]
[364519617,1749125434074,-440.0,0.00018356,2]
[364519618,1749125434084,-440.0,0.00018356,2]
[364519619,1749125434094,-425.82919193,0.00018356,2]
[364519620,1749125434104,-440.0,0.00018356,2]
[364519621,1749125434113,-440.0,0.00018356,2]
[364519622,1749125434124,-151.0,0.00018356,2]
[364519623,1749125434133,-440.0,0.00018356,2]
[364519624,1749125434144,-440.0,0.00018356,2]
[364519625,1749125434154,-440.0,0.00018356,2]
[364519626,1749125434164,-410.0,0.00018356,2]
[364519627,1749125434175,-440.0,0.00018356,2]
[364519628,1749125434185,-440.0,0.00018356,2]
[364519629,1749125434195,-440.0,0.00018356,2]
[364519630,1749125434361,-440.0,0.00018356,2]
[364519631,1749125434372,-440.0,0.00018356,2]
[364519632,1749125434382,-440.0,0.00018356,2]
[364519633,1749125434391,-440.0,0.00018356,2]
[364519634,1749125434401,-228.03758262,0.00018356,2]
[364519635,1749125434411,-440.0,0.00018356,2]
[364519636,1749125434420,-440.0,0.00018356,2]
[364519637,1749125434430,-440.0,0.00018356,2]
[364519638,1749125434440,-440.0,0.00018356,2]
[364519639,1749125434450,-431.81361973,0.00018356,2]
[364519640,1749125434461,-440.0,0.00018356,2]
[364519641,1749125434471,-440.0,0.00018356,2]
[364519642,1749125434481,-430.0,0.00018356,2]
[364519643,1749125434492,-440.0,0.00018356,2]
[364519644,1749125434502,-440.0,0.00018356,2]
[364519645,1749125434512,-440.0,0.00018356,2]
[364519646,1749125434523,-440.0,0.00018356,2]
[364519647,1749125434533,-440.0,0.00018356,2]
[364519648,1749125434542,-440.0,0.00018356,2]
[364519649,1749125434552,-440.0,0.00018356,2]
[364519650,1749125434563,-440.0,0.00018356,2]
[364519651,1749125434573,-440.0,0.00018356,2]
[364519652,1749125434583,-440.0,0.00018356,2]
[364519653,1749125434593,-430.0,0.00018356,2]
[364519654,1749125434602,-440.0,0.00018356,2]
[364519655,1749125434612,-440.0,0.00018356,2]
[364519656,1749125434621,-440.0,0.00018356,2]
[364519657,1749125434631,-440.0,0.00018356,2]
[364519658,1749125434641,-430.0,0.00018356,2]
[364519659,1749125434651,-430.0,0.00018356,2]
[364519660,1749125434660,-440.0,0.00018356,2]
[364519661,1749125434670,-535.88654576,0.00018356,2]
[364519662,1749125434680,-430.0,0.00018356,2]
[364519663,1749125434690,-440.0,0.00018356,2]
[364519664,1749125434700,-430.0,0.00018356,2]
[364519665,1749125434709,-440.0,0.00018356,2]
[364519666,1749125434720,-440.0,0.00018356,2]
[364519667,1749125434730,-430.0,0.00018356,2]
[364519668,1749125434740,-440.0,0.00018356,2]
[364519669,1749125434749,-440.0,0.00018356,2]
[364519670,1749125434759,-440.0,0.00018356,2]
[364519671,1749125434769,-430.0,0.00018356,2]
[364519672,1749125434779,-430.0,0.00018356,2]
[364519673,1749125434788,-430.0,0.00018356,2]
[364519674,1749125434797,-430.0,0.00018356,2]
[364519675,1749125434806,-440.0,0.00018356,2]
[364519676,1749125434816,-440.0,0.00018356,2]
[364519677,1749125434826,-433.86283192,0.00018356,2]
[364519678,1749125434836,-430.0,0.00018356,2]
[364519679,1749125434845,-430.0,0.00018356,2]
[364519680,1749125434855,-440.0,0.00018356,2]
[364519681,1749125434865,-578.48803937,0.00018356,2]
[364519682,1749125434875,-430.0,0.00018356,2]
[364519683,1749125434885,-440.0,0.00018356,2]
[364519684,1749125434895,-430.0,0.00018356,2]
[364519685,1749125434905,-440.0,0.00018356,2]
[364519686,1749125434915,-430.0,0.00018356,2]
[364519687,1749125434926,-440.0,0.00018356,2]